fUST/lending_fUST_20260616
["ID","MTS","AMOUNT","RATE_DAILY","PERIOD"]
[425171244,1781550647000,-521.77,0.00016986,2]
[425171239,1781550647000,-1967.51,0.00016986,2]
[425171241,1781550647000,-500.0,0.00016986,2]
[425171245,1781550647000,-500.0,0.00016986,2]
[425171227,1781550647000,-306.56,0.00016885,2]
[425171216,1781550647000,-2098.76,0.00016712,2]
[425171194,1781550647000,-972.75,0.00016712,2]
[425171221,1781550647000,-200.0,0.00016751,2]
[425171246,1781550647000,-558.75,0.00016986,2]
[425171196,1781550647000,-809.33,0.00016712,2]
[425171195,1781550647000,-845.74,0.00016712,2]
[425171191,1781550647000,-500.0,0.00016712,2]
[425171193,1781550647000,-539.42,0.00016712,2]
[425171185,1781550647000,-1162.54,0.00016712,2]
[425171186,1781550647000,-500.0,0.00016712,2]
[425171192,1781550647000,-692.77,0.00016712,2]
[425171188,1781550647000,-500.0,0.00016712,2]
[425171187,1781550647000,-500.0,0.00016712,2]
[425171189,1781550647000,-500.0,0.00016712,2]
[425171190,1781550647000,-500.0,0.00016712,2]
[425171198,1781550647000,-813.16,0.00016712,2]
[425171197,1781550647000,-500.0,0.00016712,2]
[425171205,1781550647000,-500.0,0.00016712,2]
[425171206,1781550647000,-11621.21,0.00016712,2]
[425171208,1781550647000,-500.0,0.00016712,2]
[425171209,1781550647000,-1344.18,0.00016712,2]
[425171207,1781550647000,-604.8,0.00016712,2]
[425171201,1781550647000,-500.0,0.00016712,2]
[425171200,1781550647000,-2134.66,0.00016712,2]
[425171202,1781550647000,-2035.68,0.00016712,2]
[425171204,1781550647000,-500.0,0.00016712,2]
[425171199,1781550647000,-566.74,0.00016712,2]
[425171203,1781550647000,-532.44,0.00016712,2]
[425171210,1781550647000,-712.85,0.00016712,2]
[425171211,1781550647000,-500.0,0.00016712,2]
[425171212,1781550647000,-1784.76,0.00016712,2]
[425171219,1781550647000,-3201.34,0.00016712,2]
[425171220,1781550647000,-592.2,0.00016712,2]
[425171243,1781550647000,-500.0,0.00016986,2]
[425171310,1781550647000,-200.0,0.00017,2]
[425171262,1781550647000,-1321.45,0.00016986,2]
[425171281,1781550647000,-972.75,0.00016986,2]
[425171282,1781550647000,-845.74,0.00016986,2]
[425171284,1781550647000,-500.0,0.00016986,2]
[425171276,1781550647000,-500.0,0.00016986,2]
[425171286,1781550647000,-566.74,0.00016986,2]
[425171291,1781550647000,-500.0,0.00016986,2]
[425171290,1781550647000,-532.44,0.00016986,2]
[425171292,1781550647000,-500.0,0.00016986,2]
[425171302,1781550647000,-850.16,0.00016986,2]
[425171301,1781550647000,-761.72,0.00016986,2]
[425171296,1781550647000,-1344.18,0.00016986,2]
[425171298,1781550647000,-500.0,0.00016986,2]
[425171297,1781550647000,-712.85,0.00016986,2]
[425171300,1781550647000,-500.0,0.00016986,2]
[425171294,1781550647000,-604.8,0.00016986,2]
[425171295,1781550647000,-500.0,0.00016986,2]
[425171293,1781550647000,-11621.21,0.00016986,2]
[425171299,1781550647000,-1784.76,0.00016986,2]
[425171303,1781550647000,-2098.76,0.00016986,2]
[425171314,1781550647000,-796.0,0.00017,2]
[425171313,1781550647000,-103127.36540358,0.00017,2]
[425171312,1781550647000,-3487.08797099,0.00017,2]
[425171304,1781550647000,-500.0,0.00016986,2]
[425171311,1781550647000,-10114.82321599,0.00017,2]
[425171305,1781550647000,-500.0,0.00016986,2]
[425171308,1781550647000,-306.56,0.00016991,2]
[425171306,1781550647000,-3201.34,0.00016986,2]
[425171250,1781550647000,-807.25,0.00016986,2]
[425171307,1781550647000,-592.2,0.00016986,2]
[425171278,1781550647000,-500.0,0.00016986,2]
[425171289,1781550647000,-2035.68,0.00016986,2]
[425171309,1781550647000,-421634.41474677,0.00017,2]
[425171285,1781550647000,-813.16,0.00016986,2]
[425171283,1781550647000,-809.33,0.00016986,2]
[425171261,1781550647000,-500.0,0.00016986,2]
[425171249,1781550647000,-576.93,0.00016986,2]
[425171252,1781550647000,-500.0,0.00016986,2]
[425171253,1781550647000,-500.0,0.00016986,2]
[425171251,1781550647000,-500.0,0.00016986,2]
[425171254,1781550647000,-500.0,0.00016986,2]
[425171255,1781550647000,-500.0,0.00016986,2]
[425171258,1781550647000,-639.56,0.00016986,2]
[425171259,1781550647000,-500.0,0.00016986,2]
[425171256,1781550647000,-500.0,0.00016986,2]
[425171257,1781550647000,-646.78,0.00016986,2]
[425171263,1781550647000,-500.0,0.00016986,2]
[425171265,1781550647000,-1155.03,0.00016986,2]
[425171266,1781550647000,-500.0,0.00016986,2]
[425171260,1781550647000,-428.49503407,0.00016986,2]
[425171268,1781550647000,-1212.95,0.00016986,2]
[425171269,1781550647000,-500.0,0.00016986,2]
[425171288,1781550647000,-500.0,0.00016986,2]
[425171279,1781550647000,-692.77,0.00016986,2]
[425171280,1781550647000,-539.42,0.00016986,2]
[425171277,1781550647000,-500.0,0.00016986,2]
[425171274,1781550647000,-1162.54,0.00016986,2]
[425171287,1781550647000,-2134.66,0.00016986,2]
[425171264,1781550647000,-500.0,0.00016986,2]
[425171270,1781550647000,-500.0,0.00016986,2]
[425171275,1781550647000,-500.0,0.00016986,2]
[425171272,1781550647000,-732.05,0.00016986,2]
[425171271,1781550647000,-1555.91,0.00016986,2]
[425171273,1781550647000,-500.0,0.00016986,2]
[425171267,1781550647000,-737.51,0.00016986,2]
[425171355,1781550648000,-500.0,0.0001726,2]
[425171356,1781550648000,-500.0,0.0001726,2]
[425171364,1781550648000,-500.0,0.0001726,2]
[425171365,1781550648000,-1155.03,0.0001726,2]
[425171353,1781550648000,-500.0,0.0001726,2]
[425171347,1781550648000,-558.75,0.0001726,2]
[425171348,1781550648000,-1006.42,0.0001726,2]
[425171349,1781550648000,-500.0,0.0001726,2]
[425171346,1781550648000,-500.0,0.0001726,2]
[425171351,1781550648000,-807.25,0.0001726,2]
[425171358,1781550648000,-646.78,0.0001726,2]
[425171354,1781550648000,-500.0,0.0001726,2]
[425171352,1781550648000,-500.0,0.0001726,2]
[425171360,1781550648000,-500.0,0.0001726,2]
[425171357,1781550648000,-500.0,0.0001726,2]
[425171363,1781550648000,-500.0,0.0001726,2]
[425171361,1781550648000,-500.0,0.0001726,2]
[425171362,1781550648000,-1321.45,0.0001726,2]
[425171372,1781550648000,-732.05,0.0001726,2]
[425171367,1781550648000,-737.51,0.0001726,2]
[425171370,1781550648000,-500.0,0.0001726,2]
[425171368,1781550648000,-1212.95,0.0001726,2]
[425171369,1781550648000,-500.0,0.0001726,2]
[425171374,1781550648000,-1162.54,0.0001726,2]
[425171373,1781550648000,-500.0,0.0001726,2]
[425171371,1781550648000,-1555.91,0.0001726,2]
[425171343,1781550648000,-500.0,0.0001726,2]
[425171359,1781550648000,-639.56,0.0001726,2]
[425171344,1781550648000,-500.0,0.0001726,2]
[425171340,1781550648000,-1967.51,0.0001726,2]
[425171350,1781550648000,-576.93,0.0001726,2]
[425171315,1781550648000,-306.56,0.00017096,2]
[425171316,1781550648000,-10114.82321599,0.000171,2]
[425171317,1781550648000,-3487.08797099,0.000171,2]
[425171320,1781550648000,-160.0,0.00017111,2]
[425171327,1781550648000,-151.0,0.000172,2]
[425171319,1781550648000,-160.0,0.00017111,2]
[425171322,1781550648000,-160.0,0.00017189,2]
[425171318,1781550648000,-151.0,0.000171,2]
[425171326,1781550648000,-306.57,0.0001719,2]
[425171321,1781550648000,-160.0,0.00017157,2]
[425171323,1781550648000,-160.0,0.00017189,2]
[425171324,1781550648000,-160.0,0.00017189,2]
[425171325,1781550648000,-160.0,0.00017189,2]
[425171329,1781550648000,-160.0,0.00017215,2]
[425171339,1781550648000,-569.1,0.0001726,2]
[425171332,1781550648000,-500.0,0.0001726,2]
[425171333,1781550648000,-500.0,0.0001726,2]
[425171334,1781550648000,-500.0,0.0001726,2]
[425171328,1781550648000,-306.56,0.00017202,2]
[425171331,1781550648000,-500.0,0.0001726,2]
[425171330,1781550648000,-500.0,0.0001726,2]
[425171338,1781550648000,-500.0,0.0001726,2]
[425171336,1781550648000,-500.0,0.0001726,2]
[425171335,1781550648000,-500.0,0.0001726,2]
[425171337,1781550648000,-500.0,0.0001726,2]
[425171345,1781550648000,-521.77,0.0001726,2]
[425171342,1781550648000,-500.0,0.0001726,2]
[425171341,1781550648000,-500.0,0.0001726,2]
[425171366,1781550648000,-500.0,0.0001726,2]
[425171379,1781550648000,-500.0,0.0001726,2]
[425171380,1781550648000,-692.77,0.0001726,2]
[425171406,1781550648000,-500.0,0.0001726,2]
[425171404,1781550648000,-2098.76,0.0001726,2]
[425171412,1781550648000,-160.0,0.00017412,5]
[425171425,1781550648000,-500.0,0.00017534,2]
[425171413,1781550648000,-10114.82321599,0.000175,2]
[425171414,1781550648000,-750.0,0.00017534,2]
[425171415,1781550648000,-320.0,0.00017534,2]
[425171424,1781550648000,-500.0,0.00017534,2]
[425171423,1781550648000,-500.0,0.00017534,2]
[425171416,1781550648000,-480.0,0.00017534,2]
[425171417,1781550648000,-180.0,0.00017534,2]
[425171420,1781550648000,-500.0,0.00017534,2]
[425171418,1781550648000,-500.0,0.00017534,2]
[425171422,1781550648000,-500.0,0.00017534,2]
[425171419,1781550648000,-500.0,0.00017534,2]
[425171426,1781550648000,-500.0,0.00017534,2]
[425171429,1781550648000,-500.0,0.00017534,2]
[425171436,1781550648000,-1006.42,0.00017534,2]
[425171430,1781550648000,-500.0,0.00017534,2]
[425171431,1781550648000,-500.0,0.00017534,2]
[425171432,1781550648000,-500.0,0.00017534,2]
[425171428,1781550648000,-1967.51,0.00017534,2]
[425171427,1781550648000,-569.1,0.00017534,2]
[425171435,1781550648000,-558.75,0.00017534,2]
[425171434,1781550648000,-500.0,0.00017534,2]
[425171433,1781550648000,-521.77,0.00017534,2]
[425171375,1781550648000,-500.0,0.0001726,2]
[425171407,1781550648000,-3201.34,0.0001726,2]
[425171409,1781550648000,-10114.82321599,0.000173,2]
[425171421,1781550648000,-500.0,0.00017534,2]
[425171403,1781550648000,-850.16,0.0001726,2]
[425171381,1781550648000,-539.42,0.0001726,2]
[425171408,1781550648000,-592.2,0.0001726,2]
[425171386,1781550648000,-813.16,0.0001726,2]
[425171382,1781550648000,-972.75,0.0001726,2]
[425171383,1781550648000,-845.74,0.0001726,2]
[425171377,1781550648000,-337.02976954,0.0001726,2]
[425171378,1781550648000,-500.0,0.0001726,2]
[425171376,1781550648000,-500.0,0.0001726,2]
[425171387,1781550648000,-566.74,0.0001726,2]
[425171385,1781550648000,-500.0,0.0001726,2]
[425171399,1781550648000,-500.0,0.0001726,2]
[425171389,1781550648000,-500.0,0.0001726,2]
[425171388,1781550648000,-2134.66,0.0001726,2]
[425171390,1781550648000,-2035.68,0.0001726,2]
[425171384,1781550648000,-809.33,0.0001726,2]
[425171405,1781550648000,-261.9545044,0.0001726,2]
[425171396,1781550648000,-500.0,0.0001726,2]
[425171410,1781550648000,-3487.08797099,0.000173,2]
[425171401,1781550648000,-500.0,0.0001726,2]
[425171402,1781550648000,-761.72,0.0001726,2]
[425171394,1781550648000,-11621.21,0.0001726,2]
[425171393,1781550648000,-500.0,0.0001726,2]
[425171400,1781550648000,-1784.76,0.0001726,2]
[425171391,1781550648000,-532.44,0.0001726,2]
[425171392,1781550648000,-159.28706379,0.0001726,2]
[425171397,1781550648000,-1344.18,0.0001726,2]
[425171395,1781550648000,-604.8,0.0001726,2]
[425171398,1781550648000,-712.85,0.0001726,2]
[425171411,1781550648000,-600.0,0.00017339,2]
[425171486,1781550649000,-500.0,0.00017534,2]
[425171474,1781550649000,-813.16,0.00017534,2]
[425171480,1781550649000,-500.0,0.00017534,2]
[425171481,1781550649000,-11621.21,0.00017534,2]
[425171473,1781550649000,-500.0,0.00017534,2]
[425171471,1781550649000,-845.74,0.00017534,2]
[425171467,1781550649000,-500.0,0.00017534,2]
[425171475,1781550649000,-566.74,0.00017534,2]
[425171470,1781550649000,-972.75,0.00017534,2]
[425171472,1781550649000,-809.33,0.00017534,2]
[425171468,1781550649000,-692.77,0.00017534,2]
[425171485,1781550649000,-712.85,0.00017534,2]
[425171469,1781550649000,-539.42,0.00017534,2]
[425171488,1781550649000,-500.0,0.00017534,2]
[425171496,1781550649000,-306.6,0.00017598,2]
[425171483,1781550649000,-500.0,0.00017534,2]
[425171482,1781550649000,-604.8,0.00017534,2]
[425171484,1781550649000,-1344.18,0.00017534,2]
[425171490,1781550649000,-850.16,0.00017534,2]
[425171489,1781550649000,-761.72,0.00017534,2]
[425171491,1781550649000,-2098.76,0.00017534,2]
[425171493,1781550649000,-3201.34,0.00017534,2]
[425171503,1781550649000,-500.0,0.00017808,2]
[425171494,1781550649000,-592.2,0.00017534,2]
[425171492,1781550649000,-500.0,0.00017534,2]
[425171504,1781550649000,-500.0,0.00017808,2]
[425171502,1781550649000,-500.0,0.00017808,2]
[425171478,1781550649000,-2035.68,0.00017534,2]
[425171487,1781550649000,-1784.76,0.00017534,2]
[425171479,1781550649000,-532.44,0.00017534,2]
[425171438,1781550649000,-576.93,0.00017534,2]
[425171476,1781550649000,-2134.66,0.00017534,2]
[425171437,1781550649000,-500.0,0.00017534,2]
[425171500,1781550649000,-10114.82321599,0.000178,2]
[425171440,1781550649000,-500.0,0.00017534,2]
[425171451,1781550649000,-1321.45,0.00017534,2]
[425171453,1781550649000,-500.0,0.00017534,2]
[425171452,1781550649000,-500.0,0.00017534,2]
[425171439,1781550649000,-807.25,0.00017534,2]
[425171442,1781550649000,-500.0,0.00017534,2]
[425171447,1781550649000,-646.78,0.00017534,2]
[425171443,1781550649000,-500.0,0.00017534,2]
[425171449,1781550649000,-500.0,0.00017534,2]
[425171448,1781550649000,-639.56,0.00017534,2]
[425171444,1781550649000,-500.0,0.00017534,2]
[425171477,1781550649000,-500.0,0.00017534,2]
[425171445,1781550649000,-500.0,0.00017534,2]
[425171455,1781550649000,-500.0,0.00017534,2]
[425171456,1781550649000,-737.51,0.00017534,2]
[425171464,1781550649000,-500.0,0.00017534,2]
[425171465,1781550649000,-500.0,0.00017534,2]
[425171463,1781550649000,-1162.54,0.00017534,2]
[425171454,1781550649000,-1155.03,0.00017534,2]
[425171466,1781550649000,-500.0,0.00017534,2]
[425171457,1781550649000,-1212.95,0.00017534,2]
[425171460,1781550649000,-1555.91,0.00017534,2]
[425171458,1781550649000,-500.0,0.00017534,2]
[425171459,1781550649000,-500.0,0.00017534,2]
[425171462,1781550649000,-500.0,0.00017534,2]
[425171461,1781550649000,-732.05,0.00017534,2]
[425171446,1781550649000,-500.0,0.00017534,2]
[425171501,1781550649000,-500.0,0.00017808,2]
[425171450,1781550649000,-500.0,0.00017534,2]
[425171495,1781550649000,-180.05041412,0.00017592,2]
[425171545,1781550649000,-500.0,0.00017808,2]
[425171548,1781550649000,-737.51,0.00017808,2]
[425171546,1781550649000,-1155.03,0.00017808,2]
[425171550,1781550649000,-500.0,0.00017808,2]
[425171553,1781550649000,-1555.91,0.00017808,2]
[425171549,1781550649000,-1212.95,0.00017808,2]
[425171556,1781550649000,-500.0,0.00017808,2]
[425171555,1781550649000,-732.05,0.00017808,2]
[425171552,1781550649000,-500.0,0.00017808,2]
[425171558,1781550649000,-1162.54,0.00017808,2]
[425171561,1781550649000,-500.0,0.00017808,2]
[425171571,1781550649000,-845.74,0.00017808,2]
[425171562,1781550649000,-500.0,0.00017808,2]
[425171543,1781550649000,-500.0,0.00017808,2]
[425171567,1781550649000,-692.77,0.00017808,2]
[425171572,1781550649000,-809.33,0.00017808,2]
[425171564,1781550649000,-500.0,0.00017808,2]
[425171570,1781550649000,-972.75,0.00017808,2]
[425171565,1781550649000,-500.0,0.00017808,2]
[425171575,1781550649000,-813.16,0.00017808,2]
[425171586,1781550649000,-11621.21,0.00017808,2]
[425171583,1781550649000,-532.44,0.00017808,2]
[425171574,1781550649000,-500.0,0.00017808,2]
[425171584,1781550649000,-284.44376271,0.00017808,2]
[425171578,1781550649000,-2134.66,0.00017808,2]
[425171580,1781550649000,-500.0,0.00017808,2]
[425171581,1781550649000,-2035.68,0.00017808,2]
[425171499,1781550649000,-200.0,0.00017785,2]
[425171568,1781550649000,-539.42,0.00017808,2]
[425171542,1781550649000,-1321.45,0.00017808,2]
[425171577,1781550649000,-566.74,0.00017808,2]
[425171537,1781550649000,-639.56,0.00017808,2]
[425171540,1781550649000,-500.0,0.00017808,2]
[425171497,1781550649000,-10114.82321599,0.000177,2]
[425171498,1781550649000,-6700.3308188,0.00017757,2]
[425171516,1781550649000,-521.77,0.00017808,2]
[425171517,1781550649000,-500.0,0.00017808,2]
[425171508,1781550649000,-500.0,0.00017808,2]
[425171507,1781550649000,-500.0,0.00017808,2]
[425171509,1781550649000,-407.7015565,0.00017808,2]
[425171518,1781550649000,-558.75,0.00017808,2]
[425171505,1781550649000,-500.0,0.00017808,2]
[425171511,1781550649000,-1967.51,0.00017808,2]
[425171510,1781550649000,-569.1,0.00017808,2]
[425171514,1781550649000,-500.0,0.00017808,2]
[425171513,1781550649000,-500.0,0.00017808,2]
[425171506,1781550649000,-500.0,0.00017808,2]
[425171515,1781550649000,-500.0,0.00017808,2]
[425171512,1781550649000,-500.0,0.00017808,2]
[425171531,1781550649000,-500.0,0.00017808,2]
[425171536,1781550649000,-646.78,0.00017808,2]
[425171525,1781550649000,-807.25,0.00017808,2]
[425171539,1781550649000,-500.0,0.00017808,2]
[425171528,1781550649000,-500.0,0.00017808,2]
[425171534,1781550649000,-265.01422882,0.00017808,2]
[425171533,1781550649000,-500.0,0.00017808,2]
[425171519,1781550649000,-1006.42,0.00017808,2]
[425171524,1781550649000,-576.93,0.00017808,2]
[425171527,1781550649000,-500.0,0.00017808,2]
[425171530,1781550649000,-500.0,0.00017808,2]
[425171522,1781550649000,-22545.05468418,0.00017808,3]
[425171521,1781550649000,-500.0,0.00017808,2]
[425171646,1781550650000,-23787.675646,0.00018048,2]
[425171659,1781550650000,-500.0,0.00018082,2]
[425171650,1781550650000,-500.0,0.00018082,2]
[425171648,1781550650000,-20507.940903,0.00018076,2]
[425171652,1781550650000,-412.95549224,0.00018082,2]
[425171654,1781550650000,-500.0,0.00018082,2]
[425171656,1781550650000,-500.0,0.00018082,2]
[425171663,1781550650000,-500.0,0.00018082,2]
[425171661,1781550650000,-500.0,0.00018082,2]
[425171658,1781550650000,-409.01964356,0.00018082,2]
[425171665,1781550650000,-569.1,0.00018082,2]
[425171645,1781550650000,-17852.089927,0.00018048,2]
[425171678,1781550650000,-558.75,0.00018082,2]
[425171668,1781550650000,-500.0,0.00018082,2]
[425171672,1781550650000,-500.0,0.00018082,2]
[425171670,1781550650000,-500.0,0.00018082,2]
[425171673,1781550650000,-500.0,0.00018082,2]
[425171675,1781550650000,-521.77,0.00018082,2]
[425171679,1781550650000,-1006.42,0.00018082,2]
[425171677,1781550650000,-500.0,0.00018082,2]
[425171688,1781550650000,-500.0,0.00018082,2]
[425171682,1781550650000,-576.93,0.00018082,2]
[425171686,1781550650000,-500.0,0.00018082,2]
[425171684,1781550650000,-807.25,0.00018082,2]
[425171635,1781550650000,-10114.82321599,0.00018,2]
[425171667,1781550650000,-1967.51,0.00018082,2]
[425171643,1781550650000,-18155.876174,0.00018048,2]
[425171600,1781550650000,-500.0,0.00017808,2]
[425171633,1781550650000,-201.15259929,0.00018,2]
[425171681,1781550650000,-500.0,0.00018082,2]
[425171590,1781550650000,-500.0,0.00017808,2]
[425171588,1781550650000,-604.8,0.00017808,2]
[425171592,1781550650000,-1344.18,0.00017808,2]
[425171594,1781550650000,-712.85,0.00017808,2]
[425171596,1781550650000,-500.0,0.00017808,2]
[425171611,1781550650000,-592.2,0.00017808,2]
[425171607,1781550650000,-500.0,0.00017808,2]
[425171603,1781550650000,-850.16,0.00017808,2]
[425171609,1781550650000,-3201.34,0.00017808,2]
[425171612,1781550650000,-160.0,0.00017843,6]
[425171598,1781550650000,-1784.76,0.00017808,2]
[425171639,1781550650000,-23640.865518,0.00018014,2]
[425171601,1781550650000,-761.72,0.00017808,2]
[425171605,1781550650000,-2098.76,0.00017808,2]
[425171616,1781550650000,-769.69839092,0.000179,3]
[425171618,1781550650000,-160.0,0.000179,3]
[425171622,1781550650000,-160.0,0.00017916,3]
[425171620,1781550650000,-417.15472785,0.000179,3]
[425171624,1781550650000,-17890.283821,0.00017966,2]
[425171626,1781550650000,-16721.927506,0.00017966,2]
[425171641,1781550650000,-10934.968341,0.00018048,2]
[425171628,1781550650000,-426599.7665735,0.00018,2]
[425171630,1781550650000,-22020.67042854,0.00018,2]
[425171631,1781550650000,-10000.0,0.00018,2]
[425171637,1781550650000,-364.70542713,0.00018,2]
[425171614,1781550650000,-179.518982,0.00017855,2]
[425171685,1781550650000,-500.0,0.00018082,2]
[425171696,1781550650000,-500.0,0.00018082,2]
[425171693,1781550650000,-646.78,0.00018082,2]
[425171742,1781550650000,-2035.68,0.00018082,2]
[425171746,1781550650000,-11621.21,0.00018082,2]
[425171758,1781550650000,-1784.76,0.00018082,2]
[425171756,1781550650000,-500.0,0.00018082,2]
[425171748,1781550650000,-604.8,0.00018082,2]
[425171764,1781550650000,-850.16,0.00018082,2]
[425171750,1781550650000,-500.0,0.00018082,2]
[425171754,1781550650000,-712.85,0.00018082,2]
[425171760,1781550650000,-500.0,0.00018082,2]
[425171762,1781550650000,-761.72,0.00018082,2]
[425171765,1781550650000,-2098.76,0.00018082,2]
[425171775,1781550650000,-3689.396305,0.00018114,2]
[425171777,1781550650000,-1449.607577,0.00018114,2]
[425171767,1781550650000,-500.0,0.00018082,2]
[425171778,1781550650000,-4561.159254,0.00018125,2]
[425171779,1781550650000,-10114.82321599,0.000182,2]
[425171769,1781550650000,-3201.34,0.00018082,2]
[425171773,1781550650000,-13491.805769,0.000181,2]
[425171772,1781550650000,-592.2,0.00018082,2]
[425171786,1781550650000,-500.0,0.00018356,2]
[425171784,1781550650000,-500.0,0.00018356,2]
[425171783,1781550650000,-160.0,0.00018274,7]
[425171788,1781550650000,-500.0,0.00018356,2]
[425171782,1781550650000,-364.70542713,0.000182,2]
[425171689,1781550650000,-500.0,0.00018082,2]
[425171744,1781550650000,-532.44,0.00018082,2]
[425171735,1781550650000,-566.74,0.00018082,2]
[425171752,1781550650000,-1344.18,0.00018082,2]
[425171738,1781550650000,-2134.66,0.00018082,2]
[425171731,1781550650000,-500.0,0.00018082,2]
[425171699,1781550650000,-500.0,0.00018082,2]
[425171695,1781550650000,-500.0,0.00018082,2]
[425171697,1781550650000,-1321.45,0.00018082,2]
[425171694,1781550650000,-639.56,0.00018082,2]
[425171701,1781550650000,-1155.03,0.00018082,2]
[425171704,1781550650000,-1212.95,0.00018082,2]
[425171700,1781550650000,-500.0,0.00018082,2]
[425171703,1781550650000,-737.51,0.00018082,2]
[425171706,1781550650000,-500.0,0.00018082,2]
[425171709,1781550650000,-1555.91,0.00018082,2]
[425171719,1781550650000,-500.0,0.00018082,2]
[425171721,1781550650000,-692.77,0.00018082,2]
[425171691,1781550650000,-500.0,0.00018082,2]
[425171725,1781550650000,-972.75,0.00018082,2]
[425171723,1781550650000,-539.42,0.00018082,2]
[425171739,1781550650000,-500.0,0.00018082,2]
[425171729,1781550650000,-809.33,0.00018082,2]
[425171716,1781550650000,-185.6031264,0.00018082,2]
[425171714,1781550650000,-1162.54,0.00018082,2]
[425171718,1781550650000,-500.0,0.00018082,2]
[425171733,1781550650000,-813.16,0.00018082,2]
[425171712,1781550650000,-500.0,0.00018082,2]
[425171710,1781550650000,-732.05,0.00018082,2]
[425171708,1781550650000,-500.0,0.00018082,2]
[425171726,1781550650000,-845.74,0.00018082,2]
[425171715,1781550650000,-500.0,0.00018082,2]
[425171869,1781550651000,-692.77,0.00018356,2]
[425171865,1781550651000,-500.0,0.00018356,2]
[425171863,1781550651000,-500.0,0.00018356,2]
[425171840,1781550651000,-1321.45,0.00018356,2]
[425171859,1781550651000,-500.0,0.00018356,2]
[425171857,1781550651000,-732.05,0.00018356,2]
[425171851,1781550651000,-300.72579197,0.00018356,2]
[425171855,1781550651000,-1555.91,0.00018356,2]
[425171853,1781550651000,-179.34039431,0.00018356,2]
[425171867,1781550651000,-500.0,0.00018356,2]
[425171861,1781550651000,-1162.54,0.00018356,2]
[425171870,1781550651000,-539.42,0.00018356,2]
[425171881,1781550651000,-566.74,0.00018356,2]
[425171872,1781550651000,-972.75,0.00018356,2]
[425171876,1781550651000,-809.33,0.00018356,2]
[425171888,1781550651000,-532.44,0.00018356,2]
[425171887,1781550651000,-2035.68,0.00018356,2]
[425171878,1781550651000,-500.0,0.00018356,2]
[425171885,1781550651000,-500.0,0.00018356,2]
[425171890,1781550651000,-11621.21,0.00018356,2]
[425171892,1781550651000,-604.8,0.00018356,2]
[425171896,1781550651000,-1344.18,0.00018356,2]
[425171879,1781550651000,-813.16,0.00018356,2]
[425171883,1781550651000,-2134.66,0.00018356,2]
[425171836,1781550651000,-500.0,0.00018356,2]
[425171874,1781550651000,-845.74,0.00018356,2]
[425171838,1781550651000,-500.0,0.00018356,2]
[425171894,1781550651000,-500.0,0.00018356,2]
[425171848,1781550651000,-737.51,0.00018356,2]
[425171795,1781550651000,-569.1,0.00018356,2]
[425171790,1781550651000,-500.0,0.00018356,2]
[425171789,1781550651000,-500.0,0.00018356,2]